fUSD/lending_fUSD_20251108
["ID","MTS","AMOUNT","RATE_DAILY","PERIOD"]
[393408208,1762609838234,-41589.19133913,0.00017555,2]
[393408209,1762609838243,-10501.67960083,0.00017568,2]
[393408210,1762609838253,-500.0,0.00017573,2]
[393408211,1762609838263,-500.0,0.00017573,2]
[393408212,1762609838273,-449.38309733,0.00017573,2]
[393408213,1762609838283,-500.0,0.00017573,2]
[393408214,1762609838293,-500.0,0.00017573,2]
[393408215,1762609838302,-501.35810388,0.00017573,2]
[393408216,1762609838312,-167.44385629,0.00017573,2]
[393408217,1762609838321,-180.65713594,0.00017573,2]
[393408218,1762609838331,-625.66484085,0.00017573,2]
[393408219,1762609838343,-500.0,0.00017573,2]
[393408220,1762609838352,-217.18810693,0.00017573,2]
[393408221,1762609838362,-500.0,0.00017573,2]
[393408222,1762609838372,-500.0,0.00017573,2]
[393408223,1762609838381,-14176.94697063,0.00017589,2]
[393408224,1762609838391,-150.0,0.00017596,2]
[393408225,1762609838400,-150.0,0.00017596,2]
[393408226,1762609838410,-150.0,0.00017596,2]
[393408227,1762609838420,-424.36,0.00017597,2]
[393408228,1762609838431,-500.0,0.00017597,2]
[393408229,1762609838440,-302.63766833,0.00017597,2]
[393408230,1762609838449,-500.0,0.00017597,2]
[393408231,1762609838460,-500.0,0.00017597,2]
[393408232,1762609838470,-500.0,0.00017597,2]
[393408233,1762609838479,-500.0,0.00017597,2]
[393408234,1762609838489,-500.0,0.00017597,2]
[393408235,1762609838499,-587.99749215,0.00017597,2]
[393408236,1762609838509,-522.47521665,0.00017597,2]
[393408237,1762609838519,-500.0,0.00017597,2]
[393408238,1762609838529,-500.0,0.00017597,2]
[393408239,1762609838539,-500.0,0.00017597,2]
[393408240,1762609838548,-187.23214529,0.00017597,2]
[393408241,1762609838558,-335.63061228,0.00017597,2]
[393408242,1762609838567,-292.917761,0.00017597,2]
[393408243,1762609838576,-500.0,0.00017597,2]
[393408244,1762609838586,-440.98134802,0.00017597,2]
[393408245,1762609838595,-500.0,0.00017597,2]
[393408246,1762609838605,-737.1013,0.00017598,2]
[393408247,1762609838615,-420000.0,0.00017598,2]
[393408248,1762609838625,-3200.0,0.000176,6]
[393408249,1762609838634,-10501.67960083,0.00017615,2]
[393408250,1762609838643,-14176.94697063,0.00017633,2]
[393408251,1762609838653,-10501.67960083,0.00017663,2]
[393408252,1762609838663,-500.0,0.00017673,2]
[393408253,1762609838673,-500.0,0.00017673,2]
[393408254,1762609838682,-500.0,0.00017673,2]
[393408255,1762609838692,-500.0,0.00017673,2]
[393408256,1762609838702,-8385.64437849,0.00017675,2]
[393408257,1762609838711,-14176.94697063,0.00017678,2]
[393408258,1762609838720,-319.95081928,0.00017699,2]
[393408259,1762609838730,-4800.0,0.000177,6]
[393408260,1762609838739,-14176.94697063,0.00017722,2]
[393408261,1762609838749,-150.0,0.00017733,2]
[393408262,1762609838763,-500.0,0.00017736,2]
[393408263,1762609838773,-1842.00477538,0.00017765,2]
[393408264,1762609838783,-14176.94697063,0.00017767,2]
[393408265,1762609838792,-500.0,0.00017776,2]
[393408266,1762609838802,-6400.0,0.000178,6]
[393408267,1762609838812,-14176.94697063,0.00017811,2]
[393408268,1762609838822,-14176.94697063,0.00017856,2]
[393408269,1762609838833,-424.36,0.00017871,2]
[393408270,1762609838843,-8000.0,0.000179,6]
[393408271,1762609838852,-614.82086644,0.000179,2]
[393408272,1762609838862,-239.99488842,0.000179,2]
[393408273,1762609838871,-167.04697749,0.000179,3]
[393408274,1762609838880,-2047.56194874,0.000179,2]
[393408275,1762609838890,-616.74951053,0.000179,2]
[393408276,1762609838900,-1177.81383924,0.000179,2]
[393408277,1762609838909,-14176.94697063,0.000179,2]
[393408278,1762609838918,-4941.1082237,0.00017947,2]
[393408279,1762609838928,-200.66885731,0.0001799,2]
[393408280,1762609838938,-300.0,0.00017999,2]
[393408281,1762609838948,-500.0,0.00017999,2]
[393408282,1762609838958,-500.0,0.00017999,2]
[393408283,1762609838967,-500.0,0.00017999,2]
[393408284,1762609838977,-500.0,0.00017999,2]
[393408285,1762609838987,-500.0,0.00017999,2]
[393408286,1762609838997,-500.0,0.00017999,2]
[393408287,1762609839007,-500.0,0.00017999,2]
[393408288,1762609839016,-199.89443674,0.00017999,2]
[393408289,1762609839026,-500.0,0.00017999,2]
[393408290,1762609839035,-500.0,0.00017999,2]
[393408291,1762609839044,-500.0,0.00017999,2]
[393408292,1762609839054,-500.0,0.00017999,2]
[393408293,1762609839062,-500.0,0.00017999,2]
[393408294,1762609839072,-500.0,0.00017999,2]
[393408295,1762609839082,-500.0,0.00017999,2]
[393408296,1762609839092,-500.0,0.00017999,2]
[393408297,1762609839101,-500.0,0.00017999,2]
[393408298,1762609839112,-500.0,0.00017999,2]
[393408299,1762609839121,-500.0,0.00017999,2]
[393408300,1762609839131,-500.0,0.00017999,2]
[393408301,1762609839141,-609.21044151,0.00017999,2]
[393408302,1762609839150,-4376845.62113005,0.00018,2]
[393408303,1762609839168,-159.28795301,0.00017528,2]
[393408304,1762609839178,-6052.16958627,0.00018,2]
[393408305,1762609839190,-7943.12550077,0.00018,2]
[393408306,1762609839205,-1536.95364453,0.00018,2]
[393408309,1762609839843,-672.41666014,0.00017453,2]
[393408310,1762609839853,-1328.23355788,0.00018,2]
[393408311,1762609840116,-2173.89993926,0.00018,2]
[393408312,1762609840129,-48001.26708967,0.00018,2]
[393408313,1762609840139,-1200.0,0.00018,3]
[393408314,1762609840149,-1000.0,0.00018082,2]
[393408315,1762609840159,-195.0,0.000181,2]
[393408316,1762609840168,-546.71084981,0.00018121,2]
[393408317,1762609840178,-1000.0,0.00018121,2]
[393408318,1762609840188,-1000.0,0.00018121,2]
[393408319,1762609840197,-195.0,0.00018129,2]
[393408320,1762609840207,-195.0,0.0001813,2]
[393408321,1762609840217,-250.0,0.0001813,2]
[393408322,1762609840227,-195.0,0.0001813,2]
[393408324,1762609840237,-424.36,0.00018145,2]
[393408326,1762609840247,-1000.0,0.00018221,2]
[393408327,1762609840258,-1694.3478949,0.00018325,2]
[393408328,1762609840267,-168.06,0.00018359,2]
[393408329,1762609840277,-1102.5102692,0.00018397,2]
[393408331,1762609840287,-424.36,0.00018419,2]
[393408333,1762609840296,-420.0,0.00018547,2]
[393408335,1762609840306,-249.0,0.00018548,2]
[393408337,1762609840315,-420.0,0.00018548,2]
[393408338,1762609840324,-1680.0,0.0001864,2]
[393408340,1762609840334,-500.0,0.00018668,2]
[393408342,1762609840343,-424.39,0.00018693,2]
[393408344,1762609840353,-1000.0,0.0001876,2]
[393408346,1762609840362,-378.0601171,0.00018785,2]
[393408347,1762609840372,-150.12,0.000188,2]
[393408348,1762609840382,-150.12,0.000188,2]
[393408349,1762609840392,-150.12,0.000188,2]
[393408350,1762609840403,-150.12,0.000188,2]
[393408351,1762609840412,-150.12,0.000188,2]
[393408352,1762609840422,-150.12,0.000188,2]
[393408353,1762609840431,-150.12,0.000188,2]
[393408354,1762609840441,-150.12,0.000188,2]
[393408355,1762609840450,-150.12,0.000188,2]
[393408356,1762609840460,-150.12,0.000188,2]
[393408357,1762609840469,-150.12,0.000188,2]
[393408358,1762609840479,-150.12,0.000188,2]
[393408359,1762609840488,-150.12,0.000188,2]
[393408360,1762609840498,-150.12,0.000188,2]
[393408361,1762609840507,-150.12,0.000188,2]
[393408362,1762609840517,-150.12,0.000188,2]
[393408363,1762609840527,-150.12,0.000188,2]
[393408364,1762609840537,-150.12,0.000188,2]
[393408365,1762609840547,-150.12,0.000188,2]
[393408366,1762609840558,-150.12,0.000188,2]
[393408367,1762609840567,-150.12,0.000188,2]
[393408368,1762609840577,-150.12,0.000188,2]
[393408369,1762609840587,-150.12,0.000188,2]
[393408370,1762609840596,-150.12,0.000188,2]
[393408371,1762609840605,-150.12,0.000188,2]
[393408372,1762609840616,-150.12,0.000188,2]
[393408373,1762609840626,-150.12,0.000188,2]
[393408374,1762609840635,-150.12,0.000188,2]
[393408375,1762609840645,-150.12,0.000188,2]
[393408376,1762609840655,-150.12,0.000188,2]
[393408377,1762609840665,-150.12,0.000188,2]
[393408378,1762609840674,-150.12,0.000188,2]
[393408379,1762609840694,-150.12,0.000188,2]
[393408380,1762609840705,-150.12,0.000188,2]
[393408381,1762609840714,-150.12,0.000188,2]
[393408382,1762609840724,-150.12,0.000188,2]
[393408383,1762609840734,-150.12,0.000188,2]
[393408384,1762609840743,-150.12,0.000188,2]
[393408385,1762609840754,-150.12,0.000188,2]
[393408386,1762609840767,-150.12,0.000188,2]
[393408387,1762609840777,-150.12,0.000188,2]
[393408388,1762609840787,-150.12,0.000188,2]
[393408389,1762609840798,-150.12,0.000188,2]
[393408390,1762609840807,-150.12,0.000188,2]
[393408391,1762609840817,-150.12,0.000188,2]
[393408392,1762609840828,-150.12,0.000188,2]
[393408393,1762609840838,-150.12,0.000188,2]
[393408394,1762609840848,-150.12,0.000188,2]
[393408395,1762609840858,-150.12,0.000188,2]
[393408396,1762609840868,-150.12,0.000188,2]
[393408397,1762609840878,-150.12,0.000188,2]
[393408398,1762609840888,-150.12,0.000188,2]
[393408399,1762609840898,-150.12,0.000188,2]
[393408400,1762609840908,-150.12,0.000188,2]
[393408401,1762609840918,-150.12,0.000188,2]
[393408402,1762609840928,-150.12,0.000188,2]
[393408403,1762609840938,-150.12,0.000188,2]
[393408404,1762609840949,-150.12,0.000188,2]
[393408405,1762609840959,-300.0,0.00019,2]
[393408406,1762609840968,-1335.0,0.00019,4]
[393408407,1762609840979,-1000.0,0.00019438,2]
[393408408,1762609840989,-177.37,0.00019672,2]
[393408409,1762609840999,-218.63,0.00019776,2]
[393408410,1762609841009,-798.57306655,0.00019884,2]
[393408411,1762609841019,-1000.0,0.00020116,2]
[393408412,1762609841029,-425.59,0.00020187,2]
[393408413,1762609841039,-587.0,0.00020258,2]
[393408414,1762609841050,-587.0,0.00020259,2]
[393408415,1762609841059,-478.09862864,0.00020274,2]
[393408416,1762609841070,-150.12,0.0002045,2]
[393408417,1762609841080,-2351.0,0.0002046,2]
[393408418,1762609841090,-1000.0,0.00020795,2]
[393408419,1762609841101,-616.74951049,0.00021403,2]
[393408420,1762609841111,-436.0,0.00022127,2]
[393408421,1762609841121,-696.0,0.00022128,2]
[393408422,1762609841130,-798.57306655,0.00022264,2]
[393408423,1762609841140,-749.0,0.00022458,2]
[393408424,1762609841150,-174.66931,0.0002257,2]
[393408425,1762609841160,-174.66932,0.0002307,2]
[393408426,1762609841170,-7791.75,0.000231,7]
[393408427,1762609841180,-174.66932,0.0002357,2]
[393408428,1762609841189,-3686.14262867,0.00024,2]
[393408429,1762609841199,-500.0,0.00024466,2]
[393408430,1762609841209,-798.57306655,0.00024643,2]
[393408431,1762609841219,-150.12,0.0002479,2]
[393408432,1762609841229,-150.12,0.0002479,2]
[393408433,1762609841239,-150.12,0.0002479,2]
[393408434,1762609841248,-150.12,0.0002479,2]
[393408435,1762609841439,-150.12,0.0002479,2]
[393408436,1762609841451,-150.12,0.0002479,2]
[393408437,1762609841462,-150.12,0.0002479,2]
[393408438,1762609841473,-150.12,0.0002479,2]
[393408439,1762609841484,-150.12,0.0002479,2]
[393408440,1762609841494,-151.0,0.000248,7]
[393408441,1762609841504,-151.0,0.000248,7]
[393408442,1762609841514,-157.108984,0.000248,7]
[393408443,1762609841524,-168.964599,0.000248,7]
[393408444,1762609841533,-427.965955,0.000248,7]
[393408445,1762609841543,-269975.45013339,0.000248,3]
[393408475,1762609845962,-408.57500005,0.0001771,2]
[393408480,1762609970737,-244.6,0.00016407,2]
[393408481,1762610032425,344.4,0.00010776,2]
[393408482,1762610032622,344.4,0.00011321,2]
[393408483,1762610032894,344.4,0.00011866,2]
[393408484,1762610033104,344.4,0.00012411,2]
[393408485,1762610033300,344.4,0.00012956,2]
[393408486,1762610033499,344.4,0.00013501,2]
[393408487,1762610033709,344.4,0.00014046,2]
[393408488,1762610033905,344.4,0.00014591,2]
[393408489,1762610042084,-153.95411049,0.00015136,2]
[393408490,1762610044557,-164.52383284,0.00015136,2]
[393408491,1762610050089,500.0,0.00039019,120]
[393408492,1762610050345,500.0,0.00039019,120]
[393408493,1762610050613,500.0,0.00039019,120]
[393408494,1762610050885,500.0,0.00039019,120]
[393408495,1762610051117,182.73,0.00039019,120]
[393408496,1762610175932,-25.92205667,0.00015136,2]
[393408497,1762610175955,-125.07794333,0.00015408,2]
[393408498,1762610179621,-151.81550258,0.00015408,2]
[393408499,1762610185701,-41.58013085,0.00015408,2]
[393408500,1762610185724,-205.42984381,0.00015681,2]
[393408501,1762610200066,-138.97015619,0.00015681,2]
[393408502,1762610215241,-151.0,0.00015826,2]
[393408503,1762610223686,151.0,0.00015823,2]
[393408505,1762610230423,-151.0,0.00015837,2]
[393408506,1762610621217,160.0,0.00016223,2]
[393408507,1762610630808,-344.4,0.00016226,2]
[393408509,1762610674207,500.0,0.00038984,120]
[393408510,1762610674406,500.0,0.00038984,120]
[393408511,1762610674651,624.71844406,0.00038984,120]
[393408512,1762610850475,20005.98,0.00038984,120]
[393408518,1762611032003,-285.19432111,0.00016716,2]
[393408519,1762611032014,-344.4,0.00016771,2]
[393408520,1762611032023,-278.71728745,0.00016783,2]
[393408521,1762611032116,-921.28271255,0.00016783,2]
[393408522,1762611032125,-1200.0,0.00016783,2]
[393408523,1762611032135,-300.0,0.00016783,2]
[393408524,1762611032144,-300.0,0.00016783,2]
[393408525,1762611032154,-5209.98230041,0.00016784,2]
[393408526,1762611032163,-202.52093914,0.00016784,2]
[393408527,1762611032172,-479.14383993,0.00016784,2]
[393408528,1762611032181,-164.78017624,0.00016874,2]
[393408529,1762611032191,-300.0,0.00016882,2]
[393408530,1762611032200,-162.69,0.00016883,2]
[393408531,1762611032209,-205.0424327,0.00016883,2]
[393408532,1762611032219,-500.0,0.00016883,2]
[393408533,1762611032228,-500.0,0.00016883,2]
[393408534,1762611032237,-165.2638595,0.00016883,2]
[393408535,1762611032246,-500.0,0.00016883,2]
[393408536,1762611032256,-500.0,0.00016883,2]
[393408537,1762611032265,-500.0,0.00016883,2]
[393408538,1762611032274,-500.0,0.00016883,2]
[393408539,1762611032283,-500.0,0.00016883,2]
[393408540,1762611032297,-500.0,0.00016883,2]
[393408542,1762611032306,-500.0,0.00016883,2]
[393408544,1762611032316,-500.0,0.00016883,2]
[393408546,1762611032327,-500.0,0.00016883,2]
[393408548,1762611032336,-500.0,0.00016883,2]
[393408550,1762611032347,-500.0,0.00016883,2]
[393408552,1762611032358,-331.10615362,0.00016883,2]
[393408556,1762611032370,-500.0,0.00016883,2]
[393408560,1762611032380,-234.94142859,0.00016883,2]
[393408563,1762611032390,-384.44882869,0.00016883,2]
[393408566,1762611032399,-500.0,0.00016883,2]
[393408569,1762611032409,-500.0,0.00016883,2]
[393408571,1762611032418,-500.0,0.00016883,2]
[393408573,1762611032427,-380.81922844,0.00016883,2]
[393408575,1762611032437,-500.0,0.00016884,2]
[393408577,1762611032446,-443.73507614,0.00016884,2]
[393408579,1762611032455,-500.0,0.00016884,2]
[393408581,1762611032464,-157.54260659,0.00016884,2]
[393408583,1762611032473,-500.0,0.00016884,2]
[393408584,1762611032482,-500.0,0.00016884,2]
[393408586,1762611032491,-500.0,0.00016884,2]
[393408588,1762611032500,-500.0,0.00016884,2]
[393408590,1762611032509,-29412.57624278,0.00016884,2]
[393408592,1762611032521,-199267.78973618,0.00016884,2]
[393408594,1762611032532,-933.18302333,0.00016884,2]
[393408598,1762611032560,-535.362,0.00016884,2]
[393408926,1762611038158,-1153.86737547,0.00016884,2]
[393408928,1762611038169,-1055.95684857,0.00016884,2]
[393409000,1762611039987,-254.7545,0.00016884,2]
[393409001,1762611040102,-182985.90487367,0.00016884,2]
[393409002,1762611040112,-999.99,0.00016884,2]
[393409003,1762611040123,-9999.99,0.00016884,2]
[393409004,1762611040133,-3610.58,0.00016916,2]
[393409005,1762611040143,-150.99,0.00016916,2]
[393409006,1762611040153,-344.4,0.00017316,2]
[393409007,1762611040162,-344.4,0.00017861,2]
[393409008,1762611040172,-500.0,0.00017973,2]
[393409009,1762611040182,-166.7,0.00018104,2]
[393409010,1762611040191,-150.0,0.00018231,2]
[393409011,1762611040200,-300.0,0.00018335,2]
[393409012,1762611040210,-420.0,0.00018335,2]
[393409013,1762611040224,-250.0,0.00018388,2]
[393409014,1762611040234,-250.0,0.00018388,2]
[393409015,1762611040244,-344.4,0.00018405,2]
[393409016,1762611040254,-250.0,0.00018448,2]
[393409017,1762611040264,-344.4,0.0001895,2]
[393409018,1762611040274,-166.66,0.00019213,2]
[393409019,1762611040285,-5209.98230041,0.0001924,2]
[393409020,1762611040299,-202.52093906,0.0001924,2]
[393409021,1762611040309,-479.14383993,0.0001924,2]
[393409022,1762611040319,-200.0,0.0001926,2]
[393409023,1762611040329,-151.59027207,0.00019268,2]
[393409024,1762611040339,-150.0,0.00019268,2]
[393409025,1762611040348,-344.4,0.00019495,2]
[393409026,1762611040358,-166.66,0.00019617,2]
[393409027,1762611040369,-57649.86,0.00019936,2]
[393409028,1762611040378,-3369.21,0.00019957,2]
[393409029,1762611040388,-1000.0,0.00019983,2]
[393409031,1762611040398,-166.66,0.00020022,2]
[393409033,1762611040407,-587.0,0.0002003,2]
[393409035,1762611040417,-344.4,0.0002004,2]
[393409036,1762611040426,-478.09862864,0.00020231,2]
[393409037,1762611040435,-2000.0,0.000203,2]
[393409038,1762611040445,-166.66,0.00020426,2]
[393409040,1762611040455,-344.4,0.00020585,2]
[393409042,1762611040464,-266.77334569,0.00020699,5]
[393409044,1762611040474,-166.66,0.00020831,2]
[393409046,1762611040484,-344.4,0.0002113,2]
[393409048,1762611040495,-166.66,0.00021235,2]
[393409050,1762611040504,-4260.86,0.00021422,2]
[393409052,1762611040513,-300.0,0.00021681,2]
[393409054,1762611040523,-5209.98230041,0.00021695,2]
[393409056,1762611040532,-202.52093906,0.00021695,2]
[393409058,1762611040542,-479.14383993,0.00021695,2]
[393409060,1762611040551,-823.0,0.00021882,2]
[393409062,1762611040560,-168.18,0.00022085,2]
[393409063,1762611040570,-1000.0,0.00022481,2]
[393409064,1762611040579,-300.0,0.00023051,2]
[393409065,1762611040590,-1152.0,0.00023905,2]
[393409066,1762611040600,-2000.0,0.00024,2]
[393409067,1762611040614,-206.98,0.00024112,2]
[393409068,1762611040624,-5209.98230041,0.00024151,2]
[393409069,1762611040634,-202.52093906,0.00024151,2]
[393409070,1762611040644,-479.14383993,0.00024151,2]
[393409071,1762611040654,-159.28795301,0.00024352,2]
[393409072,1762611040665,-3552.8216941,0.00024531,2]
[393409073,1762611040676,-8214.8964984,0.00024538,2]
[393409074,1762611040686,-159.28795302,0.00024574,2]
[393409075,1762611040695,-2500.0,0.000247,2]
[393409076,1762611040705,-1000.0,0.000247,2]
[393409077,1762611040714,-574.14159547,0.00024799,2]
[393409078,1762611040724,-478.09862864,0.000248,3]
[393409079,1762611040733,-34508.776622,0.000248,7]
[393409080,1762611040742,-800.0,0.000248,9]
[393409081,1762611040751,-143489.233003,0.000248,3]
[393409082,1762611040761,-143489.233003,0.0002489,3]
[393409083,1762611040771,-182.375563,0.0002489,7]
[393409084,1762611040780,-182.375563,0.0002489,7]
[393409085,1762611040790,-182.375563,0.0002489,7]
[393409086,1762611040801,-421.152612,0.0002489,7]
[393409087,1762611040810,-182.375563,0.0002489,7]
[393409088,1762611040820,-421.152612,0.0002489,7]
[393409089,1762611040829,-421.152612,0.0002489,7]
[393409090,1762611040838,-421.152612,0.0002489,7]
[393409091,1762611040848,-151.0,0.000249,7]
[393409092,1762611040857,-151.0,0.000249,7]
[393409093,1762611040868,-151.0,0.000249,7]
[393409094,1762611040879,-151.0,0.000249,7]
[393409095,1762611040888,-1600.0,0.000249,9]
[393409096,1762611040899,-111979.691933,0.000249,3]
[393409097,1762611040908,-1000.0,0.00024979,2]
[393409098,1762611040918,-4868.68225795,0.0002499,3]
[393409099,1762611040928,-1000.01,0.00025,2]
[393409100,1762611040938,-1000.01,0.000255,2]
[393409101,1762611040948,-1613.0,0.00026116,2]
[393409102,1762611040958,-1657.0,0.00026322,2]
[393409103,1762611040968,-458.96,0.0002645,2]
[393409104,1762611040978,-2142.0,0.0002645,2]
[393409105,1762611040987,-559.0,0.0002645,2]
[393409106,1762611041001,-4868.68225795,0.00026596,3]
[393409107,1762611041011,-5209.98230041,0.00026606,2]
[393409108,1762611041021,-202.52093906,0.00026606,2]
[393409109,1762611041030,-479.14383993,0.00026606,2]
[393409110,1762611041039,-9737.3645159,0.00026675,3]
[393409111,1762611041049,-425.59,0.00026676,2]
[393409112,1762611041059,-199.0,0.00027,7]
[393409113,1762611041070,-164.0,0.00027,7]
[393409114,1762611041079,-4868.68225795,0.00027387,3]
[393409115,1762611041089,-151.0,0.00027397,7]
[393409116,1762611041099,-1500.0,0.00027397,16]
[393409117,1762611041109,-300.0,0.00027397,2]
[393409118,1762611041120,-445.68,0.000274,7]
[393409119,1762611041130,-1000.0,0.00027477,2]
[393409120,1762611041139,-153.2,0.000275,7]
[393409121,1762611041149,-792.7416735,0.00027638,2]
[393409122,1762611041159,-1832.9911712,0.00027646,2]
[393409123,1762611041169,-1692.79,0.00027671,30]
[393409124,1762611041178,-730.53,0.00027675,2]
[393409125,1762611041187,-2000.0,0.000277,2]
[393409126,1762611041198,-182.375563,0.0002797,30]
[393409127,1762611041207,-182.375563,0.0002797,30]
[393409128,1762611041217,-182.375563,0.0002797,30]
[393409129,1762611041227,-421.152612,0.0002797,31]
[393409130,1762611041236,-182.375563,0.0002797,30]
[393409131,1762611041246,-421.152612,0.0002797,31]
[393409132,1762611041255,-421.152612,0.0002797,31]
[393409133,1762611041265,-421.152612,0.0002797,31]
[393409134,1762611041274,-16631.23503475,0.0002798,3]
[393409135,1762611041291,-2394.70155613,0.0002798,3]
[393409136,1762611041308,-1109.0,0.0002798,3]
[393409137,1762611041319,-3273.01653635,0.0002798,3]
[393409138,1762611041331,-1110.39209989,0.0002798,3]
[393409159,1762611044032,-210.0,0.00021325,2]
[393409160,1762611044042,-210.0,0.00021389,2]
[393409161,1762611044052,-210.0,0.00021453,2]
[393409162,1762611044061,-210.0,0.00021517,2]
[393409163,1762611044071,-222.07688879,0.00021581,2]
[393409164,1762611044081,-11353.96302378,0.0002798,3]
[393409165,1762611044091,-14606.0467739,0.0002798,3]
[393409166,1762611044100,-4868.68225795,0.0002799,3]
[393409167,1762611044110,-299.704,0.00027998,2]
[393409168,1762611044121,-10825.75336429,0.00028,5]
[393409169,1762611044131,-176.8845765,0.00028332,2]
[393409170,1762611044140,-408.9956136,0.0002834,2]
[393409172,1762611044151,-2258.0,0.00028531,2]
[393409174,1762611044160,-9737.3645159,0.00028667,3]
[393409176,1762611044169,-3424.0,0.00028677,2]
[393409178,1762611044179,-607.0,0.00028677,2]
[393409180,1762611044188,-1316.0,0.00028677,2]
[393409182,1762611044197,-574.0,0.00028677,2]
[393409184,1762611044207,-1596.0,0.00028677,2]
[393409186,1762611044217,-820.0,0.00028677,2]
[393409188,1762611044226,-812.0,0.00028677,2]
[393409190,1762611044235,-1273.0,0.00028677,2]
[393409192,1762611044245,-165.0,0.00028767,14]
[393409194,1762611044254,-5209.98230041,0.00029062,2]
[393409196,1762611044263,-202.52093906,0.00029062,2]
[393409198,1762611044273,-479.14383993,0.00029062,15]
[393409200,1762611044283,-298.7966094,0.00029292,30]
[393409202,1762611044295,-150.0,0.00029292,30]
[393409204,1762611044305,-4868.68225795,0.0002944,3]
[393409206,1762611044315,-2142.0,0.0002945,2]
[393409207,1762611044324,-1000.0,0.00029975,2]
[393409209,1762611044335,-999.0,0.00030136,2]
[393409211,1762611044345,-1000.0,0.00030312,2]
[393409212,1762611044361,-199.0,0.0003041,7]
[393409214,1762611044374,-1920.42,0.00030874,2]
[393409215,1762611044383,-445.68,0.000309,7]
[393409216,1762611044393,-199.0,0.00030958,8]
[393409217,1762611044403,-168.18,0.00030966,2]
[393409218,1762611044412,-556.0,0.00031169,2]
[393409219,1762611044422,-2000.0,0.000314,2]
[393409220,1762611044431,-199.0,0.00031506,9]
[393409221,1762611044441,-4868.68225795,0.00031507,3]
[393409222,1762611044450,-200.66885731,0.00031507,2]
[393409223,1762611044460,-5209.98230041,0.00031517,2]
[393409224,1762611044470,-202.52093906,0.00031517,2]
[393409225,1762611044479,-479.14383993,0.00031517,15]
[393409226,1762611044490,-150.42,0.00031637,2]
[393409227,1762611044500,-35872.3082509,0.00031646,3]
[393409228,1762611044510,-14606.0467739,0.00031646,3]
[393409229,1762611044520,-4868.68225795,0.00031667,3]
[393409230,1762611044529,-3424.0,0.00031677,2]
[393409231,1762611044540,-607.0,0.00031677,2]
[393409232,1762611044559,-1316.0,0.00031677,2]
[393409233,1762611044570,-1596.0,0.00031677,2]
[393409234,1762611044580,-820.0,0.00031677,2]
[393409235,1762611044590,-812.0,0.00031677,2]
[393409236,1762611044599,-1273.0,0.00031677,2]
[393409237,1762611044609,-3277.649,0.00031967,31]
[393409238,1762611044620,-177.373,0.00031967,31]
[393409239,1762611044630,-199.0,0.00032054,10]
[393409240,1762611044640,-14606.0467739,0.00032209,3]
[393409241,1762611044651,-4868.68225795,0.0003222,3]
[393409242,1762611044661,-151.0,0.00032227,7]
[393409243,1762611044671,-150.0,0.00032229,20]
[393409244,1762611044681,-223.39501825,0.0003223,31]
[393409245,1762611044691,-151.0,0.0003223,31]
[393409246,1762611044701,-4868.68225795,0.0003224,3]
[393409247,1762611044711,-478.09862864,0.0003225,120]